bitfinex/quotes_BTCUSD_20250414
["timestamp","ask_amount","ask_price","bid_price","bid_amount"]
[1744596421492,0.14952,84153.0,84152.0,0.01486452]
[1744596421735,0.001,84153.0,84152.0,0.01486452]
[1744596422094,0.002,84153.0,84152.0,0.13570606]
[1744596422420,0.001,84153.0,84152.0,0.01486452]
[1744596423134,0.002,84153.0,84152.0,0.01486452]
[1744596423452,0.001,84153.0,84152.0,0.13808274]
[1744596423654,0.001,84153.0,84152.0,0.52879503]
[1744596423857,0.001,84153.0,84152.0,0.52641835]
[1744596424392,0.002,84153.0,84152.0,0.52641835]
[1744596425338,0.002,84153.0,84152.0,0.5409592]
[1744596425526,0.002,84153.0,84152.0,0.47941835]
[1744596426273,0.001,84153.0,84152.0,0.47941835]
[1744596426482,0.001,84153.0,84152.0,0.48041835]
[1744596426781,0.00880495,84169.0,84166.0,0.011881]
[1744596427024,0.1499417,84173.0,84172.0,0.190086]
[1744596427360,0.1499417,84173.0,84172.0,0.19747264]
[1744596427563,0.0004217,84173.0,84172.0,0.19747264]
[1744596428188,0.0004217,84173.0,84172.0,0.20489592]
[1744596429161,0.0024217,84173.0,84172.0,0.20489592]
[1744596430218,0.0054217,84173.0,84172.0,0.20489592]
[1744596430826,0.0034217,84173.0,84172.0,0.20489592]
[1744596431031,0.0004217,84173.0,84172.0,0.20589592]
[1744596431232,0.0004217,84173.0,84172.0,0.20789592]
[1744596431657,0.0004217,84173.0,84172.0,0.20689592]
[1744596431915,0.0004217,84173.0,84172.0,0.20789592]
[1744596432834,0.0004217,84173.0,84172.0,0.01780992]
[1744596433070,0.0004217,84173.0,84172.0,0.20047264]
[1744596434314,0.0004217,84173.0,84172.0,0.01038664]
[1744596435376,0.27078324,84173.0,84172.0,0.01038664]
[1744596435579,0.27078324,84173.0,84172.0,0.002]
[1744596436396,0.27078324,84173.0,84155.0,0.011882]
[1744596436397,0.011882,84158.0,84155.0,0.011882]
[1744596436595,0.011882,84158.0,84156.0,0.00734136]
[1744596437845,0.011882,84158.0,84156.0,0.00834136]
[1744596438043,0.0498,84157.0,84156.0,0.00834136]
[1744596438244,0.0498,84157.0,84156.0,0.0010992]
[1744596439093,0.21086548,84158.0,84156.0,0.0010992]
[1744596439891,0.21086548,84158.0,84156.0,9.92e-05]
[1744596440071,0.001,84157.0,84156.0,9.92e-05]
[1744596440680,0.002,84157.0,84156.0,9.92e-05]
[1744596440882,0.001,84157.0,84156.0,9.92e-05]
[1744596441281,0.002,84157.0,84156.0,9.92e-05]
[1744596442671,0.002,84157.0,84156.0,0.19759371]
[1744596443757,0.002,84157.0,84156.0,0.00747071]
[1744596444378,0.002,84157.0,84156.0,9.92e-05]
[1744596444827,0.002,84157.0,84156.0,0.00752878]
[1744596445031,0.001,84157.0,84156.0,0.00752878]
[1744596445429,0.003,84157.0,84156.0,0.00752878]
[1744596445940,0.002,84157.0,84156.0,0.00752878]
[1744596446441,0.004,84157.0,84156.0,0.00752878]
[1744596447049,0.0988,84157.0,84156.0,0.00752878]
[1744596447544,0.004,84157.0,84156.0,9.92e-05]
[1744596447745,0.001,84157.0,84156.0,9.92e-05]
[1744596448047,0.00893243,84158.0,84157.0,0.19012]
[1744596448468,0.1593152,84167.0,84161.0,0.011881]
[1744596448662,0.1593152,84167.0,84164.0,0.011881]
[1744596449152,0.1593152,84167.0,84165.0,0.00746582]
[1744596449354,0.1593152,84167.0,84166.0,0.1901]
[1744596449710,0.1593152,84167.0,84166.0,0.19755761]
[1744596450122,0.1623152,84167.0,84166.0,0.19755761]
[1744596450663,0.1653152,84167.0,84166.0,0.19755761]
[1744596451078,0.1673152,84167.0,84166.0,0.19755761]
[1744596451638,0.1653152,84167.0,84166.0,0.19755761]
[1744596451888,0.1673152,84167.0,84166.0,0.19755761]
[1744596454213,0.15848,84167.0,84166.0,0.19755761]
[1744596454570,0.008,84167.0,84166.0,0.19755761]
[1744596454772,0.008,84167.0,84166.0,0.37037518]
[1744596454997,0.008,84167.0,84166.0,0.38254]
[1744596455240,0.008,84167.0,84166.0,0.39437022]
[1744596455598,0.002,84167.0,84166.0,0.39437022]
[1744596455772,0.002,84167.0,84166.0,0.73437022]
[1744596455975,0.003,84167.0,84166.0,1.15307022]
[1744596456321,0.001,84167.0,84166.0,1.15307022]
[1744596456766,0.002,84167.0,84166.0,1.15307022]
[1744596457160,0.0004217,84173.0,84172.0,0.190086]
[1744596457303,0.0004217,84173.0,84172.0,0.31092754]
[1744596457497,0.0004217,84173.0,84172.0,0.19741291]
[1744596458592,0.0004217,84173.0,84172.0,0.31825445]
[1744596458823,0.0004217,84173.0,84172.0,0.3327953]
[1744596459043,0.0024217,84173.0,84172.0,0.3327953]
[1744596459727,0.0044217,84173.0,84172.0,0.3327953]
[1744596460611,0.0024217,84173.0,84172.0,0.3327953]
[1744596461007,0.0034217,84173.0,84172.0,0.3327953]
[1744596461733,0.0014217,84173.0,84172.0,0.3327953]
[1744596462257,0.0004217,84173.0,84172.0,0.3327953]
[1744596462492,0.0004217,84173.0,84172.0,0.6757953]
[1744596462733,0.0014217,84173.0,84172.0,0.66325445]
[1744596462929,0.0014217,84173.0,84172.0,0.54241291]
[1744596463085,0.0014217,84173.0,84172.0,0.20041291]
[1744596463430,0.0004217,84173.0,84172.0,0.19941291]
[1744596463624,0.0014217,84173.0,84172.0,0.20241291]
[1744596463974,0.0014217,84173.0,84172.0,0.20041291]
[1744596464307,0.0014217,84173.0,84172.0,0.20141291]
[1744596464722,0.0014217,84173.0,84172.0,0.31925445]
[1744596464925,0.0004217,84173.0,84172.0,0.31925445]
[1744596465090,0.0004217,84173.0,84172.0,0.20141291]
[1744596465462,0.0004217,84173.0,84172.0,0.19741291]
[1744596465664,0.0004217,84173.0,84172.0,0.20041291]
[1744596465845,0.0004217,84173.0,84172.0,0.20141291]
[1744596466073,0.0004217,84173.0,84172.0,0.19841291]
[1744596466263,0.0004217,84173.0,84172.0,0.20141291]
[1744596466426,0.0004217,84173.0,84172.0,0.20041291]
[1744596466628,0.0004217,84173.0,84172.0,0.20141291]
[1744596467016,0.0004217,84173.0,84172.0,0.33917113]
[1744596467220,0.0004217,84173.0,84172.0,0.3853953]
[1744596467425,0.0004217,84173.0,84172.0,0.3863953]
[1744596467871,0.0004217,84173.0,84172.0,0.3893953]
[1744596472297,0.0004217,84173.0,84172.0,0.4383953]
[1744596472504,0.0004217,84173.0,84172.0,0.8570953]
[1744596473910,7e-07,84173.0,84172.0,0.8570953]
[1744596475369,7e-07,84173.0,84172.0,0.8080953]
[1744596488462,7e-07,84173.0,84172.0,1.1480953]
[1744596488851,7e-07,84173.0,84172.0,1.18140496]
[1744596490150,7e-07,84173.0,84172.0,1.18882531]
[1744596491108,7e-07,84173.0,84172.0,1.18282531]
[1744596491449,7e-07,84173.0,84172.0,1.18682531]
[1744596491656,7e-07,84173.0,84172.0,1.18882531]
[1744596492477,0.002,84199.0,84198.0,0.190028]
[1744596492678,0.002,84199.0,84198.0,0.67474248]
[1744596492855,0.002,84199.0,84198.0,0.6723675]
[1744596493733,0.00246453,84199.0,84198.0,0.6723675]
[1744596494092,0.00646453,84199.0,84198.0,0.67978681]
[1744596494515,0.00746453,84199.0,84198.0,0.67978681]
[1744596494734,0.01046453,84199.0,84198.0,0.67978681]
[1744596494934,0.01046453,84199.0,84198.0,0.69154475]
[1744596495334,0.00746453,84199.0,84198.0,0.69154475]
[1744596496240,0.00846453,84199.0,84198.0,0.69154475]
[1744596498276,0.00846453,84199.0,84198.0,0.68412544]
[1744596498678,0.00846453,84199.0,84198.0,1.10282474]
[1744596499021,2.3e-07,84203.0,84202.0,0.35454085]
[1744596499317,5.3e-07,84203.0,84202.0,0.90091007]
[1744596499494,3e-08,84207.0,84206.0,0.54455085]
[1744596499693,3e-08,84207.0,84206.0,0.8191878]
[1744596499911,3e-08,84207.0,84206.0,0.82660589]
[1744596500474,3e-08,84207.0,84206.0,0.8191878]
[1744596500714,3e-08,84207.0,84206.0,0.8201878]
[1744596501832,0.0008436,84210.0,84206.0,0.8201878]
[1744596501833,6.3e-07,84210.0,84209.0,0.54454385]
[1744596502034,6.3e-07,84210.0,84209.0,0.71378539]
[1744596502192,6.3e-07,84210.0,84209.0,0.72055336]
[1744596503007,6.3e-07,84210.0,84209.0,0.72255336]
[1744596503208,6.3e-07,84210.0,84209.0,0.72555336]
[1744596504744,6.3e-07,84210.0,84209.0,1.14425266]
[1744596506926,3e-08,84219.0,84218.0,0.54452385]
[1744596507131,3e-08,84219.0,84218.0,1.1856988]
[1744596507273,1.3e-07,84224.0,84223.0,0.54451185]
[1744596507479,1.3e-07,84224.0,84223.0,0.81891092]
[1744596508518,1.3e-07,84229.0,84228.0,0.54450085]
[1744596508722,0.00013938,84229.0,84228.0,0.67192137]
[1744596508893,3.8e-07,84229.0,84228.0,0.72032137]
[1744596509097,3.8e-07,84229.0,84228.0,0.72773764]
[1744596509381,0.0004221,84244.0,84243.0,0.54446685]
[1744596509612,0.0004685,84244.0,84243.0,1.08358521]
[1744596509809,0.0004685,84244.0,84243.0,1.09756916]
[1744596510144,5e-07,84244.0,84243.0,1.14596916]
[1744596510522,5e-07,84244.0,84243.0,1.15793822]
[1744596511737,5e-07,84244.0,84243.0,1.16093822]
[1744596512136,0.002,84259.0,84257.0,0.54443585]
[1744596512415,0.002,84259.0,84257.0,0.67173703]
[1744596512416,9e-07,84258.0,84257.0,0.67173703]
[1744596512907,9e-07,84258.0,84257.0,0.6791533]
[1744596513497,9e-07,84258.0,84257.0,1.09743012]
[1744596514074,9e-07,84258.0,84257.0,1.09943012]
[1744596514916,4.729e-05,84258.0,84257.0,1.09943012]
[1744596515123,0.00194795,84259.0,84258.0,0.35454085]
[1744596515288,0.00194795,84259.0,84258.0,0.48279866]
[1744596515488,0.00194795,84259.0,84258.0,0.48918753]
[1744596516699,0.00194795,84259.0,84258.0,0.53948753]
[1744596517102,9.5e-07,84259.0,84258.0,0.53948753]
[1744596517734,9.5e-07,84259.0,84258.0,0.68636753]
[1744596517938,9.5e-07,84259.0,84258.0,0.63706753]
[1744596518512,9.5e-07,84259.0,84258.0,0.63065126]
[1744596518702,9.5e-07,84259.0,84258.0,0.63565126]
[1744596519198,9.5e-07,84259.0,84258.0,0.89250723]
[1744596519914,9.5e-07,84259.0,84258.0,0.88550723]
[1744596520119,9.5e-07,84259.0,84258.0,0.56004808]
[1744596520311,9.5e-07,84259.0,84258.0,0.90704808]
[1744596520816,9.5e-07,84259.0,84258.0,0.90504808]
[1744596521037,9.5e-07,84259.0,84258.0,0.90704808]
[1744596521294,9.5e-07,84259.0,84258.0,0.89250723]
[1744596521506,9.5e-07,84259.0,84258.0,0.88550723]
[1744596521631,9.5e-07,84259.0,84258.0,0.34638887]
[1744596521979,9.5e-07,84259.0,84258.0,0.35038887]
[1744596522281,9.5e-07,84259.0,84258.0,0.34638887]
[1744596522593,9.5e-07,84259.0,84258.0,0.47123041]
[1744596522885,9.5e-07,84259.0,84258.0,0.48577126]
[1744596523337,9.5e-07,84259.0,84258.0,0.49118516]
[1744596523538,9.5e-07,84259.0,84258.0,0.49318516]
[1744596523744,9.5e-07,84259.0,84258.0,0.49418516]
[1744596524148,9.5e-07,84259.0,84258.0,0.49789219]
[1744596524353,9.5e-07,84259.0,84258.0,0.48335134]
[1744596524596,9.5e-07,84259.0,84258.0,0.3625098]
[1744596524818,9.5e-07,84259.0,84258.0,0.0225098]
[1744596525009,0.04830095,84259.0,84258.0,0.0225098]
[1744596525173,0.04830095,84259.0,84258.0,0.0150959]
[1744596525595,0.04830095,84259.0,84258.0,0.01138887]
[1744596525970,0.04830095,84259.0,84258.0,0.01038887]
[1744596526167,0.04830095,84259.0,84258.0,0.01138887]
[1744596526596,0.04830095,84259.0,84258.0,0.01238887]
[1744596526958,0.23919095,84259.0,84258.0,0.01238887]
[1744596527158,0.23919095,84259.0,84258.0,0.006]
[1744596527658,0.011868,84256.0,84253.0,0.011869]
[1744596527859,0.011868,84256.0,84248.0,0.011869]
[1744596527860,0.011869,84252.0,84248.0,0.01191539]
[1744596528061,0.011869,84253.0,84249.0,0.201782]
[1744596528882,0.011868,84255.0,84250.0,0.011869]
[1744596529847,0.011868,84254.0,84251.0,0.011869]
[1744596530883,0.011869,84253.0,84250.0,0.011869]
[1744596531087,0.201775,84252.0,84249.0,0.002]
[1744596531237,0.201778,84251.0,84248.0,4.639e-05]
[1744596531445,0.237213,84249.0,84248.0,4.639e-05]
[1744596532711,0.0473,84249.0,84248.0,4.639e-05]
[1744596532913,0.0473,84249.0,84248.0,0.00104639]
[1744596534875,0.237213,84249.0,84248.0,0.00104639]
[1744596536846,0.24931832,84249.0,84248.0,0.00104639]
[1744596537689,0.24931832,84249.0,84248.0,4.639e-05]
[1744596538122,0.27137923,84249.0,84248.0,4.639e-05]
[1744596538747,0.27437923,84249.0,84248.0,4.639e-05]
[1744596538946,0.27237923,84249.0,84248.0,4.639e-05]
[1744596539146,0.27137923,84249.0,84248.0,4.639e-05]
[1744596539355,0.27437923,84249.0,84248.0,4.639e-05]
[1744596539557,0.27737923,84249.0,84248.0,4.639e-05]
[1744596541978,0.25531832,84249.0,84248.0,4.639e-05]
[1744596542967,0.27736111,84249.0,84248.0,4.639e-05]
[1744596543376,0.25531832,84249.0,84248.0,4.639e-05]
[1744596544625,0.71615986,84249.0,84248.0,4.639e-05]
[1744596545115,0.61736173,84249.0,84248.0,4.639e-05]
[1744596545351,0.07534341,84249.0,84248.0,4.639e-05]
[1744596545577,0.06934341,84249.0,84248.0,4.639e-05]
[1744596546011,0.07634341,84249.0,84248.0,0.00662587]
[1744596546201,0.0503,84249.0,84248.0,0.00662587]
[1744596546400,0.0473,84249.0,84248.0,0.00662587]
[1744596546632,0.003,84249.0,84248.0,0.19654087]
[1744596547730,0.14636,84256.0,84248.0,0.01849487]
[1744596547967,0.0481,84249.0,84248.0,0.00662587]
[1744596548196,0.0481,84249.0,84248.0,4.639e-05]
[1744596548670,0.004,84249.0,84248.0,4.639e-05]
[1744596549145,0.005,84249.0,84248.0,4.639e-05]
[1744596549627,0.51524154,84249.0,84248.0,4.639e-05]
[1744596549854,0.189969,84224.0,84223.0,0.0008434]
[1744596550306,0.011872,84226.0,84223.0,0.0008898]
[1744596550536,0.201823,84232.0,84226.0,0.011872]
[1744596550537,0.011872,84231.0,84226.0,0.011872]
[1744596550767,0.158231,84234.0,84226.0,0.011872]
[1744596550992,0.201828,84230.0,84227.0,0.00662563]
[1744596551198,0.201832,84228.0,84224.0,0.011873]
[1744596551426,0.201832,84228.0,84225.0,0.00662329]
[1744596551656,0.011872,84228.0,84225.0,0.00662329]
[1744596552553,0.189965,84226.0,84225.0,0.00662329]
[1744596552775,0.189965,84226.0,84223.0,0.0008898]
[1744596552937,0.189969,84224.0,84223.0,0.0008898]
[1744596554088,0.31081054,84224.0,84223.0,0.0008898]
[1744596554316,0.33288532,84224.0,84223.0,0.0008898]
[1744596554494,0.21204378,84224.0,84223.0,0.0008898]
[1744596554650,0.02207478,84224.0,84223.0,0.0008898]
[1744596554855,0.02307478,84224.0,84223.0,0.1908608]
[1744596555048,0.02307478,84224.0,84223.0,0.0008898]
[1744596555049,0.35944378,84224.0,84223.0,0.0008898]
[1744596555249,0.45821054,84224.0,84223.0,0.0008898]
[1744596555718,0.80021054,84224.0,84223.0,0.0008898]
[1744596556263,0.79821054,84224.0,84223.0,0.0008898]
[1744596557041,0.79721054,84224.0,84223.0,0.0008898]
[1744596557385,0.80121054,84224.0,84223.0,0.0008898]
[1744596557617,0.80421054,84224.0,84223.0,0.0008898]
[1744596559604,1.31361054,84224.0,84223.0,0.0008898]
[1744596560573,1.30961054,84224.0,84223.0,0.0008898]
[1744596560741,1.30661054,84224.0,84223.0,0.0008898]
[1744596561062,0.956469,84224.0,84223.0,0.0008898]
[1744596561240,1.096869,84224.0,84223.0,0.0008898]
[1744596561457,1.098869,84224.0,84223.0,0.0008898]
[1744596561829,1.103869,84224.0,84223.0,0.0008898]
[1744596562249,1.21971054,84224.0,84223.0,0.0008898]
[1744596562652,1.22971054,84224.0,84223.0,0.0008898]
[1744596563304,0.32681054,84224.0,84223.0,0.0008898]
[1744596563451,0.47325054,84224.0,84223.0,0.0008898]
[1744596563652,0.46125054,84224.0,84223.0,0.0008898]
[1744596563890,0.45725054,84224.0,84223.0,0.0008898]
[1744596564092,0.46325054,84224.0,84223.0,0.0008898]
[1744596572593,0.48529095,84224.0,84223.0,0.0008898]
[1744596572847,0.53119095,84224.0,84223.0,0.0008898]
[1744596573636,0.52819095,84224.0,84223.0,0.0008898]
[1744596574097,0.52919095,84224.0,84223.0,0.0008898]
[1744596574447,0.91669095,84224.0,84223.0,0.0008898]
[1744596574654,0.92069095,84224.0,84223.0,0.0008898]
[1744596575063,1.33319095,84224.0,84223.0,0.0008898]
[1744596575263,1.33719095,84224.0,84223.0,0.0008898]
[1744596575464,1.33319095,84224.0,84223.0,0.0008898]
[1744596575775,1.32919095,84224.0,84223.0,0.0008898]
[1744596575977,1.33319095,84224.0,84223.0,0.0008898]
[1744596576794,1.33719095,84224.0,84223.0,0.0008898]
[1744596577262,1.45391943,84224.0,84223.0,0.0008898]
[1744596577479,1.42787902,84224.0,84223.0,0.0008898]
[1744596577736,1.43287902,84224.0,84223.0,0.0008898]
[1744596577949,1.43787902,84224.0,84223.0,0.0008898]
[1744596578348,1.31715054,84224.0,84223.0,0.0008898]
[1744596580197,1.32819683,84224.0,84223.0,0.0008898]
[1744596580944,1.31715054,84224.0,84223.0,0.0008898]
[1744596583716,1.27125054,84224.0,84223.0,0.0008898]
[1744596584866,1.22375054,84224.0,84223.0,0.0008898]
[1744596585071,1.07731054,84224.0,84223.0,0.0008898]
[1744596585279,1.22375054,84224.0,84223.0,0.0008898]
[1744596586495,0.88375054,84224.0,84223.0,0.0008898]
[1744596586662,0.46725054,84224.0,84223.0,0.0008898]
[1744596587902,0.346409,84224.0,84223.0,0.0008898]
[1744596588127,0.199969,84224.0,84223.0,0.0008898]
[1744596588399,0.346409,84224.0,84223.0,0.0008898]
[1744596588621,0.01,84224.0,84223.0,0.1908608]
[1744596588835,0.15644,84224.0,84223.0,0.05715877]
[1744596589276,0.01,84224.0,84223.0,0.24712977]
[1744596589498,0.01,84224.0,84223.0,0.29612977]
[1744596590654,0.005,84224.0,84223.0,0.29612977]
[1744596590871,0.158312,84227.0,84223.0,0.30800277]
[1744596591091,0.003,84224.0,84223.0,0.30800277]
[1744596591332,0.007,84224.0,84223.0,0.30800277]
[1744596592615,0.004,84224.0,84223.0,0.30800277]
[1744596593133,0.14944,84227.0,84226.0,0.189965]
[1744596593570,0.15344,84227.0,84226.0,0.19679378]
[1744596594065,0.14944,84227.0,84226.0,0.00682878]
[1744596594273,0.011872,84226.0,84223.0,0.0992898]
[1744596594407,0.201837,84226.0,84224.0,0.00683112]
[1744596594815,0.189969,84224.0,84223.0,0.0008898]
[1744596596273,0.336369,84224.0,84223.0,0.0008898]
[1744596596815,0.79721054,84224.0,84223.0,0.0008898]
[1744596597517,0.80121054,84224.0,84223.0,0.0008898]
[1744596598138,0.79721054,84224.0,84223.0,0.0008898]
[1744596599353,0.80021054,84224.0,84223.0,0.0008898]
[1744596599805,0.79921054,84224.0,84223.0,0.0008898]
[1744596600223,0.80121054,84224.0,84223.0,0.0008898]
[1744596600604,0.80321054,84224.0,84223.0,0.0008898]
[1744596603278,0.1524,84224.0,84223.0,0.0008898]
[1744596603741,0.342369,84224.0,84223.0,0.0008898]
[1744596604148,0.1524,84224.0,84223.0,0.0008898]
[1744596604283,0.1524,84224.0,84223.0,0.007726]
[1744596604487,0.1524,84224.0,84223.0,0.197697]
[1744596607337,0.006,84224.0,84223.0,0.36393854]
[1744596607738,0.05565473,84234.0,84233.0,0.189949]
[1744596608142,0.05565473,84234.0,84233.0,0.19666946]
[1744596608367,0.05565473,84234.0,84233.0,0.20408698]
[1744596608908,0.05565473,84234.0,84233.0,0.32492852]
[1744596609078,0.05565473,84234.0,84233.0,0.77146937]
[1744596609283,0.05565473,84234.0,84233.0,0.78333286]
[1744596609806,0.01385473,84234.0,84233.0,1.20160968]
[1744596610371,0.01385473,84234.0,84233.0,1.20460968]
[1744596610776,0.01385473,84234.0,84233.0,1.20160968]
[1744596611035,0.00885473,84234.0,84233.0,1.20460968]
[1744596611489,0.011867,84263.0,84258.0,0.189892]
[1744596611679,0.011867,84263.0,84258.0,0.19653981]
[1744596612251,0.00887627,84262.0,84258.0,0.19653981]
[1744596612685,0.011866,84269.0,84258.0,0.19653981]
[1744596612686,0.00885473,84271.0,84258.0,0.24313981]
[1744596612863,0.00885473,84271.0,84258.0,0.38593738]
[1744596613068,0.00500095,84259.0,84258.0,0.43233738]
[1744596613308,9.5e-07,84259.0,84258.0,1.1896142]
[1744596613768,0.00600095,84259.0,84258.0,1.1956142]
[1744596614166,0.00100095,84259.0,84258.0,1.1956142]
[1744596614372,0.00100095,84259.0,84258.0,1.2086897]
[1744596616169,9.5e-07,84259.0,84258.0,1.2086897]
[1744596616792,0.05213665,84289.0,84258.0,1.2086897]
[1744596616998,0.00046404,84289.0,84286.0,0.201693]
[1744596617235,0.00046404,84289.0,84287.0,0.00657299]
[1744596618017,0.00046404,84289.0,84287.0,0.19639999]
[1744596618861,0.00046404,84289.0,84287.0,0.00657299]
[1744596619092,0.011864,84283.0,84276.0,0.011865]
[1744596619259,0.011864,84286.0,84279.0,0.011865]
[1744596619466,0.011864,84286.0,84280.0,0.01818494]
[1744596619661,0.011864,84286.0,84282.0,0.011864]
[1744596619662,0.201695,84286.0,84282.0,0.011864]
[1744596619879,0.011864,84285.0,84283.0,0.00632111]
[1744596621335,0.189834,84284.0,84283.0,0.00632111]
[1744596621537,0.015864,84285.0,84283.0,0.00632111]
[1744596621770,0.017864,84285.0,84281.0,0.011865]
[1744596621896,0.017864,84285.0,84284.0,0.00621703]
[1744596622100,0.017864,84285.0,84282.0,0.011864]
[1744596622306,0.189834,84284.0,84283.0,0.00621703]
[1744596622506,0.189834,84284.0,84273.0,0.011866]
[1744596622507,0.18985,84277.0,84273.0,0.011866]
[1744596622706,0.011865,84280.0,84275.0,0.201717]
[1744596622896,0.2017,84283.0,84278.0,0.011865]
[1744596623093,0.011865,84280.0,84275.0,0.201717]
[1744596623288,0.011865,84279.0,84275.0,0.201717]
[1744596623714,0.011866,84269.0,84266.0,0.011867]
[1744596623913,0.011866,84272.0,84268.0,0.011866]
[1744596625014,0.012866,84272.0,84268.0,0.201736]
[1744596625749,0.201729,84271.0,84268.0,0.011866]
[1744596626182,0.201729,84271.0,84261.0,0.011867]
[1744596626183,0.011867,84262.0,84241.0,0.41827682]
[1744596626388,0.201763,84257.0,84251.0,0.011869]
[1744596626586,0.011868,84257.0,84251.0,0.011869]
[1744596626792,0.011868,84260.0,84250.0,0.011869]
[1744596626943,0.011868,84259.0,84255.0,0.201767]
[1744596627471,0.011868,84259.0,84256.0,0.00625467]
[1744596628070,0.011868,84259.0,84256.0,0.01812267]
[1744596628272,0.011868,84260.0,84257.0,0.011868]
[1744596628599,0.011868,84259.0,84258.0,0.0064435]
[1744596628959,0.011868,84259.0,84256.0,0.011868]
[1744596629142,0.011868,84259.0,84258.0,0.0064435]
[1744596629347,0.011868,84259.0,84257.0,0.00644233]
[1744596629710,0.02075484,84259.0,84258.0,0.0064435]
[1744596630180,0.02075484,84259.0,84256.0,0.013868]
[1744596630348,0.02075484,84259.0,84258.0,0.00644286]
[1744596630542,0.02075484,84259.0,84257.0,0.00644169]
[1744596630746,0.02075484,84259.0,84258.0,0.00644286]
[1744596630946,0.02175484,84259.0,84258.0,0.00644286]
[1744596631355,0.02175484,84259.0,84256.0,0.011868]
[1744596631554,0.02175484,84259.0,84258.0,0.01369482]
[1744596631750,0.00988684,84259.0,84258.0,0.002]
[1744596631955,0.00988684,84259.0,84258.0,0.20558682]
[1744596632484,0.00988684,84259.0,84258.0,0.01569482]
[1744596633243,0.00888684,84259.0,84258.0,0.01569482]
[1744596633523,0.19089,84259.0,84258.0,0.01569482]
[1744596633948,0.65173154,84259.0,84258.0,0.01569482]
[1744596634173,0.71035365,84259.0,84258.0,0.01569482]
[1744596634388,0.71035365,84259.0,84258.0,0.002]
[1744596634558,0.70935365,84259.0,84258.0,0.002]
[1744596634939,0.71135365,84259.0,84258.0,0.002]
[1744596635343,0.01187,84242.0,84238.0,0.011871]
[1744596635539,0.14628,84244.0,84241.0,0.201801]
[1744596635970,0.14628,84244.0,84242.0,0.20451502]
[1744596636204,0.4165,84258.0,84257.0,0.189895]
[1744596636393,1.719667,84266.0,84257.0,0.189895]
[1744596636394,1.3678,84266.0,84261.0,0.189885]
[1744596636705,1.379667,84266.0,84263.0,0.011867]
[1744596636830,0.011867,84265.0,84261.0,0.189885]
[1744596637439,1.3678,84266.0,84263.0,0.011867]
[1744596637654,1.37683723,84266.0,84263.0,0.011867]
[1744596637877,1.38870423,84266.0,84264.0,0.01459533]
[1744596638072,0.003,84265.0,84264.0,0.01459533]
[1744596638313,0.007,84265.0,84264.0,0.01459533]
[1744596639055,0.196877,84265.0,84264.0,0.01459533]
[1744596639266,0.011867,84261.0,84258.0,0.011868]
[1744596639458,0.011867,84261.0,84259.0,0.01459533]
[1744596639708,0.011867,84261.0,84258.0,0.011868]
[1744596639879,0.011869,84248.0,84239.0,0.189934]
[1744596640116,0.011869,84246.0,84242.0,0.02644899]
[1744596640335,0.011869,84248.0,84242.0,0.21637499]
[1744596640813,0.011869,84249.0,84245.0,0.01187]
[1744596641152,0.001,84248.0,84246.0,0.01457928]
[1744596641330,0.011869,84249.0,84246.0,0.01457928]
[1744596641495,0.011869,84249.0,84245.0,0.01187]
[1744596641693,0.011869,84249.0,84246.0,0.01457928]
[1744596641897,0.011869,84249.0,84245.0,0.01187]
[1744596642194,0.011869,84249.0,84246.0,0.01457928]
[1744596642398,0.011869,84249.0,84246.0,0.011869]
[1744596642599,0.011869,84249.0,84247.0,0.01457928]
[1744596643640,0.011869,84249.0,84247.0,0.01757928]
[1744596644049,0.34,84264.0,84258.0,0.189891]
[1744596644259,0.011867,84261.0,84257.0,0.011868]
[1744596644605,0.011868,84260.0,84257.0,0.011868]
[1744596644849,0.011868,84260.0,84258.0,0.01459311]
[1744596645493,0.201758,84260.0,84258.0,0.01459311]
[1744596645697,0.201758,84260.0,84256.0,0.011868]
[1744596645903,0.201758,84260.0,84257.0,0.01459311]
[1744596646473,0.203758,84260.0,84257.0,0.01459311]
[1744596646943,0.201758,84260.0,84257.0,0.01459311]
[1744596647204,0.189892,84258.0,84257.0,0.01459311]
[1744596647407,0.011869,84251.0,84246.0,0.011869]
[1744596647580,0.011869,84251.0,84244.0,0.189922]
[1744596647581,0.011869,84250.0,84244.0,0.189922]
[1744596647788,0.011869,84250.0,84247.0,0.0145818]
[1744596647989,0.011869,84250.0,84243.0,0.01187]
[1744596647990,0.011868,84259.0,84251.0,0.201777]
[1744596648193,0.011868,84259.0,84253.0,0.189902]
[1744596648358,0.002,84260.0,84257.0,0.011868]
[1744596648557,0.011868,84259.0,84252.0,0.189905]
[1744596648815,0.20176,84259.0,84258.0,0.01459311]
[1744596649020,0.011868,84257.0,84254.0,0.011868]
[1744596649163,0.011869,84251.0,84247.0,0.201786]
[1744596649568,0.011868,84255.0,84249.0,0.20178]
[1744596649902,0.011867,84264.0,84258.0,0.011868]
[1744596650106,0.002,84259.0,84258.0,0.20176]
[1744596650622,0.011867,84264.0,84260.0,0.011868]
[1744596651040,0.011867,84263.0,84260.0,0.011868]
[1744596652857,0.002,84259.0,84258.0,0.011868]
[1744596653084,0.189908,84251.0,84245.0,0.01187]
[1744596653277,0.20376,84259.0,84254.0,0.011868]
[1744596653429,0.011868,84259.0,84255.0,0.011868]
[1744596653850,0.011867,84261.0,84258.0,0.011868]
[1744596654042,0.011868,84259.0,84255.0,0.011868]
[1744596654432,0.011868,84258.0,84256.0,0.01464698]
[1744596654560,0.189895,84257.0,84256.0,0.01464698]
[1744596654984,0.189895,84257.0,84255.0,0.001]
[1744596655976,0.189895,84257.0,84256.0,0.01464447]
[1744596656184,0.011869,84253.0,84250.0,0.011869]
[1744596656629,0.201773,84253.0,84251.0,0.01463944]
[1744596657031,0.201794,84244.0,84240.0,0.01187]
[1744596657238,0.201794,84244.0,84241.0,0.01462813]
[1744596658403,0.01187,84244.0,84241.0,0.02649813]
[1744596659947,0.189926,84243.0,84241.0,0.01862813]
[1744596660404,0.189926,84243.0,84241.0,0.004]
[1744596660545,0.19861181,84243.0,84241.0,0.004]
[1744596661136,0.189951,84232.0,84231.0,0.002]
[1744596661361,0.011871,84234.0,84231.0,0.01665937]
[1744596661587,0.011871,84234.0,84231.0,0.0020464]
[1744596661813,0.189949,84233.0,84232.0,0.01461423]
[1744596662269,0.31079054,84233.0,84231.0,0.0020464]
[1744596662531,0.12084154,84232.0,84231.0,0.0020464]
[1744596663202,0.14290063,84232.0,84231.0,0.0020464]
[1744596663633,0.02205909,84232.0,84231.0,0.0040464]
[1744596664087,0.02205909,84232.0,84231.0,0.21065385]
[1744596664310,0.02305909,84232.0,84231.0,0.21065385]